fUSD/lending_fUSD_20250618
["ID","MTS","AMOUNT","RATE_DAILY","PERIOD"]
[366405508,1750234254311,-151.0,0.00016602,2]
[366405509,1750234254321,-583.97,0.00016602,2]
[366405510,1750234254331,-490.0,0.00016602,2]
[366405511,1750234254340,-1305.54,0.00016602,2]
[366405512,1750234254350,-781.49,0.00016602,2]
[366405513,1750234254361,-490.0,0.00016602,2]
[366405514,1750234254373,-151.0,0.00016602,2]
[366405515,1750234254383,-490.0,0.00016602,2]
[366405516,1750234254392,-151.0,0.00016602,2]
[366405517,1750234254402,-180.185986,0.00016602,2]
[366405518,1750234254412,-782.65,0.00016602,2]
[366405519,1750234254421,-561.73,0.00016602,2]
[366405520,1750234254431,-151.0,0.00016602,2]
[366405521,1750234254440,-151.0,0.00016602,2]
[366405522,1750234254450,-195.316092,0.00016602,2]
[366405523,1750234254459,-490.0,0.00016602,2]
[366405524,1750234254469,-151.0,0.00016602,2]
[366405525,1750234254479,-151.0,0.00016602,2]
[366405526,1750234254488,-285.910761,0.00016602,2]
[366405527,1750234254498,-671.46,0.00016602,2]
[366405528,1750234254507,-490.0,0.00016602,2]
[366405529,1750234254517,-490.0,0.00016602,2]
[366405530,1750234254527,-151.0,0.00016602,2]
[366405531,1750234254537,-151.0,0.00016602,2]
[366405532,1750234254546,-490.0,0.00016602,2]
[366405533,1750234254556,-1400.31,0.00016602,2]
[366405534,1750234254565,-588.29,0.00016602,2]
[366405535,1750234254575,-151.0,0.00016602,2]
[366405536,1750234254584,-151.970844,0.00016602,2]
[366405537,1750234254595,-490.0,0.00016602,2]
[366405538,1750234254604,-1063.26,0.00016602,2]
[366405539,1750234254614,-675.62,0.00016602,2]
[366405540,1750234254624,-490.0,0.00016602,2]
[366405541,1750234254634,-151.0,0.00016602,2]
[366405542,1750234254643,-555.21434392,0.00016602,2]
[366405543,1750234254653,-257.712027,0.00016602,2]
[366405544,1750234254663,-705.74,0.00016602,2]
[366405545,1750234254672,-151.137962,0.00016602,2]
[366405546,1750234254682,-490.0,0.00016602,2]
[366405547,1750234254692,-490.0,0.00016602,2]
[366405548,1750234254701,-490.0,0.00016602,2]
[366405549,1750234254712,-490.0,0.00016602,2]
[366405550,1750234254721,-1561.0,0.00016602,2]
[366405551,1750234254731,-151.0,0.00016602,2]
[366405552,1750234254741,-151.0,0.00016602,2]
[366405553,1750234254751,-151.0,0.00016602,2]
[366405554,1750234254760,-151.859175,0.00016602,2]
[366405555,1750234254770,-490.0,0.00016602,2]
[366405556,1750234254780,-151.0,0.00016602,2]
[366405557,1750234254790,-490.0,0.00016602,2]
[366405558,1750234254799,-151.0,0.00016602,2]
[366405559,1750234254809,-223.78,0.00016602,2]
[366405560,1750234254819,-490.0,0.00016602,2]
[366405561,1750234254830,-490.0,0.00016602,2]
[366405562,1750234254840,-490.0,0.00016602,2]
[366405563,1750234254850,-490.0,0.00016602,2]
[366405564,1750234254860,-490.0,0.00016602,2]
[366405565,1750234254870,-495.84,0.00016602,2]
[366405566,1750234254880,-610.71,0.00016602,2]
[366405567,1750234254889,-697.12,0.00016602,2]
[366405568,1750234254899,-490.0,0.00016602,2]
[366405569,1750234254909,-496.54240382,0.00016602,2]
[366405570,1750234254919,-490.0,0.00016602,2]
[366405571,1750234254928,-490.0,0.00016602,2]
[366405572,1750234254939,-612.38033996,0.00016602,2]
[366405573,1750234254949,-490.0,0.00016602,2]
[366405574,1750234254959,-490.0,0.00016602,2]
[366405575,1750234254968,-490.0,0.00016602,2]
[366405576,1750234254978,-490.0,0.00016602,2]
[366405577,1750234254988,-490.0,0.00016602,2]
[366405578,1750234254999,-490.0,0.00016602,2]
[366405579,1750234255011,-490.0,0.00016602,2]
[366405580,1750234255021,-490.0,0.00016602,2]
[366405581,1750234255031,-490.0,0.00016602,2]
[366405582,1750234255041,-490.0,0.00016602,2]
[366405583,1750234255051,-151.0,0.00016602,2]
[366405584,1750234255061,-151.0,0.00016602,2]
[366405585,1750234255071,-490.0,0.00016602,2]
[366405586,1750234255082,-196.283848,0.00016602,2]
[366405587,1750234255092,-543.24,0.00016602,2]
[366405588,1750234255102,-490.0,0.00016602,2]
[366405589,1750234255112,-490.0,0.00016602,2]
[366405590,1750234255121,-490.0,0.00016602,2]
[366405591,1750234255132,-490.0,0.00016602,2]
[366405592,1750234255141,-490.0,0.00016602,2]
[366405593,1750234255151,-490.0,0.00016602,2]
[366405594,1750234255160,-490.0,0.00016602,2]
[366405595,1750234255170,-298.07663356,0.00016602,2]
[366405596,1750234255180,-490.0,0.00016602,2]
[366405597,1750234255189,-490.0,0.00016602,2]
[366405598,1750234255200,-772.05,0.00016602,2]
[366405599,1750234255209,-471.84794786,0.00016602,2]
[366405600,1750234255219,-490.0,0.00016602,2]
[366405601,1750234255515,-490.0,0.00016602,2]
[366405602,1750234255538,-509.15,0.00016602,2]
[366405603,1750234255548,-490.0,0.00016602,2]
[366405604,1750234255558,-490.0,0.00016602,2]
[366405605,1750234255568,-490.0,0.00016602,2]
[366405606,1750234255577,-490.0,0.00016602,2]
[366405607,1750234255588,-490.0,0.00016602,2]
[366405608,1750234255597,-1645.86,0.00016602,2]
[366405609,1750234255607,-611.55,0.00016602,2]
[366405610,1750234255616,-1207.78,0.00016602,2]
[366405611,1750234255626,-490.0,0.00016602,2]
[366405612,1750234255636,-1366.7,0.00016602,2]
[366405613,1750234255646,-560.56,0.00016602,2]
[366405614,1750234255656,-490.0,0.00016602,2]
[366405615,1750234255666,-490.0,0.00016602,2]
[366405616,1750234255676,-490.0,0.00016602,2]
[366405617,1750234255686,-490.0,0.00016602,2]
[366405618,1750234255696,-490.0,0.00016602,2]
[366405619,1750234255705,-490.0,0.00016602,2]
[366405620,1750234255715,-490.0,0.00016602,2]
[366405621,1750234255726,-651.31,0.00016602,2]
[366405622,1750234255736,-490.0,0.00016602,2]
[366405623,1750234255746,-490.0,0.00016602,2]
[366405624,1750234255756,-770.59,0.00016602,2]
[366405625,1750234255767,-490.0,0.00016602,2]
[366405626,1750234255777,-1225.33,0.00016602,2]
[366405627,1750234255787,-751.86,0.00016602,2]
[366405628,1750234255797,-490.0,0.00016602,2]
[366405629,1750234255807,-490.0,0.00016602,2]
[366405630,1750234255817,-490.0,0.00016602,2]
[366405631,1750234255827,-833.95,0.00016602,2]
[366405632,1750234255837,-349.32403921,0.00016602,2]
[366405633,1750234255848,-490.0,0.00016602,2]
[366405634,1750234255858,-490.0,0.00016602,2]
[366405635,1750234255868,-891.22,0.00016602,2]
[366405636,1750234255878,-1396.11,0.00016602,2]
[366405637,1750234255887,-490.0,0.00016602,2]
[366405638,1750234255897,-461.39569436,0.00016602,2]
[366405639,1750234255907,-737.85,0.00016602,2]
[366405640,1750234255917,-490.0,0.00016602,2]
[366405641,1750234255927,-625.83,0.00016602,2]
[366405642,1750234255938,-490.0,0.00016602,2]
[366405643,1750234255948,-1229.34,0.00016602,2]
[366405644,1750234255958,-490.0,0.00016602,2]
[366405645,1750234255968,-887.572348,0.00016602,2]
[366405646,1750234255977,-690.34,0.00016602,2]
[366405647,1750234255987,-490.0,0.00016602,2]
[366405648,1750234255997,-490.0,0.00016602,2]
[366405649,1750234256007,-557.48,0.00016602,2]
[366405650,1750234256016,-1214.92,0.00016602,2]
[366405651,1750234256025,-981.63,0.00016602,2]
[366405652,1750234256035,-490.0,0.00016602,2]
[366405653,1750234256045,-490.0,0.00016602,2]
[366405654,1750234256055,-858.97,0.00016602,2]
[366405655,1750234256065,-1058.51,0.00016602,2]
[366405656,1750234256075,-250.0,0.00016602,2]
[366405657,1750234256084,-490.0,0.00016602,2]
[366405658,1750234256094,-490.0,0.00016602,2]
[366405659,1750234256105,-926.94,0.00016602,2]
[366405660,1750234256114,-490.0,0.00016602,2]
[366405661,1750234256124,-490.0,0.00016602,2]
[366405662,1750234256134,-1317.85,0.00016602,2]
[366405663,1750234256144,-628.43,0.00016602,2]
[366405664,1750234256153,-700.5,0.00016602,2]
[366405665,1750234256163,-490.0,0.00016602,2]
[366405666,1750234256172,-568.89,0.00016602,2]
[366405667,1750234256182,-518.87,0.00016602,2]
[366405668,1750234256192,-490.0,0.00016602,2]
[366405669,1750234256202,-490.0,0.00016602,2]
[366405670,1750234256211,-695.67,0.00016602,2]
[366405671,1750234256222,-490.0,0.00016602,2]
[366405672,1750234256232,-490.0,0.00016602,2]
[366405673,1750234256243,-637.24,0.00016602,2]
[366405674,1750234256254,-744.52,0.00016602,2]
[366405675,1750234256264,-490.0,0.00016602,2]
[366405676,1750234256274,-1061.43,0.00016602,2]
[366405677,1750234256283,-490.0,0.00016602,2]
[366405678,1750234256294,-490.0,0.00016602,2]
[366405679,1750234256304,-490.0,0.00016602,2]
[366405680,1750234256313,-651.86,0.00016602,2]
[366405681,1750234256325,-490.0,0.00016602,2]
[366405682,1750234256335,-490.0,0.00016602,2]
[366405683,1750234256344,-490.0,0.00016602,2]
[366405684,1750234256355,-1420.47,0.00016602,2]
[366405685,1750234256366,-490.0,0.00016602,2]
[366405686,1750234256375,-490.0,0.00016602,2]
[366405687,1750234256387,-823.21,0.00016602,2]
[366405688,1750234256398,-883.88,0.00016602,2]
[366405689,1750234256409,-1780.9,0.00016602,2]
[366405690,1750234256419,-1014.12,0.00016602,2]
[366405691,1750234256428,-674.15,0.00016602,2]
[366405692,1750234256438,-490.0,0.00016602,2]
[366405693,1750234256447,-1494.81,0.00016602,2]
[366405694,1750234256457,-490.0,0.00016602,2]
[366405695,1750234256467,-646.64,0.00016602,2]
[366405696,1750234256476,-490.0,0.00016602,2]
[366405697,1750234256486,-490.0,0.00016602,2]
[366405698,1750234256495,-490.0,0.00016602,2]
[366405699,1750234256505,-775.89,0.00016602,2]
[366405700,1750234256515,-490.0,0.00016602,2]
[366405701,1750234256525,-490.0,0.00016602,2]
[366405702,1750234256535,-649.84,0.00016602,2]
[366405703,1750234256544,-490.0,0.00016602,2]
[366405704,1750234256554,-490.0,0.00016602,2]
[366405705,1750234256564,-490.0,0.00016602,2]
[366405706,1750234256574,-555.27,0.00016602,2]
[366405707,1750234256584,-886.28,0.00016602,2]
[366405708,1750234256594,-1559.25,0.00016602,2]
[366405709,1750234256603,-151.0,0.00016602,2]
[366405710,1750234256613,-490.0,0.00016602,2]
[366405711,1750234256622,-270.072069,0.00016602,2]
[366405712,1750234256633,-490.0,0.00016602,2]
[366405713,1750234256642,-490.0,0.00016602,2]
[366405714,1750234256652,-490.0,0.00016602,2]
[366405715,1750234256661,-151.0,0.00016602,2]
[366405716,1750234256671,-151.0,0.00016602,2]
[366405717,1750234256680,-151.0,0.00016602,2]
[366405718,1750234256689,-151.0,0.00016602,2]
[366405719,1750234256699,-151.0,0.00016602,2]
[366405720,1750234256709,-496.83,0.00016602,2]
[366405721,1750234256718,-1222.79,0.00016602,2]
[366405722,1750234256728,-543.96,0.00016602,2]
[366405723,1750234256738,-490.0,0.00016602,2]
[366405724,1750234256748,-490.0,0.00016602,2]
[366405725,1750234256758,-1392.99,0.00016602,2]
[366405726,1750234256768,-1462.56,0.00016602,2]
[366405727,1750234256777,-490.0,0.00016602,2]
[366405728,1750234256787,-490.0,0.00016602,2]
[366405729,1750234256798,-151.0,0.00016602,2]
[366405730,1750234256808,-743.12,0.00016602,2]
[366405731,1750234256818,-490.0,0.00016602,2]
[366405732,1750234256827,-490.0,0.00016602,2]
[366405733,1750234256837,-490.0,0.00016602,2]
[366405734,1750234256846,-490.0,0.00016602,2]
[366405735,1750234256856,-490.0,0.00016602,2]
[366405736,1750234256865,-993.77,0.00016602,2]
[366405737,1750234256875,-771.96,0.00016602,2]
[366405738,1750234256885,-711.7,0.00016602,2]
[366405739,1750234256894,-300.0,0.00016602,2]
[366405740,1750234256904,-1025.64,0.00016602,2]
[366405741,1750234256914,-490.0,0.00016602,2]
[366405742,1750234256924,-490.0,0.00016602,2]
[366405743,1750234256933,-617.7,0.00016602,2]
[366405744,1750234256943,-1472.8,0.00016602,2]
[366405745,1750234256953,-490.0,0.00016602,2]
[366405746,1750234256962,-633.28,0.00016602,2]
[366405747,1750234256972,-855.01,0.00016602,2]
[366405748,1750234256982,-490.0,0.00016602,2]
[366405749,1750234256992,-989.87,0.00016602,2]
[366405750,1750234257002,-1157.2,0.00016602,2]
[366405751,1750234257011,-538.41,0.00016602,2]
[366405752,1750234257021,-850.49,0.00016602,2]
[366405753,1750234257030,-587.59,0.00016602,2]
[366405754,1750234257040,-2088.36,0.00016602,2]
[366405755,1750234257049,-490.0,0.00016602,2]
[366405756,1750234257058,-490.0,0.00016602,2]
[366405757,1750234257068,-896.82,0.00016602,2]
[366405758,1750234257077,-1288.11,0.00016602,2]
[366405759,1750234257087,-490.0,0.00016602,2]
[366405760,1750234257096,-490.0,0.00016602,2]
[366405761,1750234257106,-490.0,0.00016602,2]
[366405762,1750234257115,-151.0,0.00016602,2]
[366405763,1750234257124,-1423.46,0.00016602,2]
[366405764,1750234257134,-655.01,0.00016602,2]
[366405765,1750234257144,-1357.87,0.00016602,2]
[366405766,1750234257154,-151.0,0.00016602,2]
[366405767,1750234257165,-161.986491,0.00016602,2]
[366405768,1750234257175,-490.0,0.00016602,2]
[366405769,1750234257186,-490.0,0.00016602,2]
[366405770,1750234257196,-490.0,0.00016602,2]
[366405771,1750234257205,-490.0,0.00016602,2]
[366405772,1750234257215,-490.0,0.00016602,2]
[366405773,1750234257225,-1451.71,0.00016602,2]
[366405774,1750234257234,-860.42,0.00016602,2]
[366405775,1750234257244,-498.01,0.00016602,2]
[366405776,1750234257254,-490.0,0.00016602,2]
[366405777,1750234257264,-490.0,0.00016602,2]
[366405778,1750234257274,-490.0,0.00016602,2]
[366405779,1750234257283,-490.0,0.00016602,2]
[366405780,1750234257293,-758.8,0.00016602,2]
[366405781,1750234257302,-1106.44,0.00016602,2]
[366405782,1750234257312,-490.0,0.00016602,2]
[366405783,1750234257321,-832.1,0.00016602,2]
[366405784,1750234257331,-771.47,0.00016602,2]
[366405785,1750234257341,-490.0,0.00016602,2]
[366405786,1750234257350,-2282.39,0.00016602,2]
[366405787,1750234257360,-490.0,0.00016602,2]
[366405788,1750234257370,-679.42,0.00016602,2]
[366405789,1750234257381,-490.0,0.00016602,2]
[366405790,1750234257391,-490.0,0.00016602,2]
[366405791,1750234257401,-490.0,0.00016602,2]
[366405792,1750234257411,-490.0,0.00016602,2]
[366405793,1750234257421,-490.0,0.00016602,2]
[366405794,1750234257430,-490.0,0.00016602,2]
[366405795,1750234257440,-1760.48,0.00016602,2]
[366405796,1750234257449,-490.0,0.00016602,2]
[366405797,1750234257459,-906.73,0.00016602,2]
[366405798,1750234257469,-490.0,0.00016602,2]
[366405799,1750234257478,-759.2,0.00016602,2]
[366405800,1750234257488,-490.0,0.00016602,2]
[366405801,1750234257497,-490.0,0.00016602,2]
[366405802,1750234257507,-490.0,0.00016602,2]
[366405803,1750234257517,-490.0,0.00016602,2]
[366405804,1750234257527,-517.05,0.00016602,2]
[366405805,1750234257537,-490.0,0.00016602,2]
[366405806,1750234257546,-151.0,0.00016602,2]
[366405807,1750234257556,-151.0,0.00016602,2]
[366405808,1750234257566,-151.0,0.00016602,2]
[366405809,1750234257575,-490.0,0.00016602,2]
[366405810,1750234257585,-151.0,0.00016602,2]
[366405811,1750234257595,-151.0,0.00016602,2]
[366405812,1750234257604,-490.0,0.00016602,2]
[366405813,1750234257614,-490.0,0.00016602,2]
[366405814,1750234257623,-819.78,0.00016602,2]
[366405815,1750234257633,-569.21733593,0.00016602,2]
[366405816,1750234257646,-490.0,0.00016602,2]
[366405817,1750234257655,-490.0,0.00016602,2]
[366405818,1750234257665,-522.72,0.00016602,2]
[366405819,1750234257674,-1368.42,0.00016602,2]
[366405820,1750234257684,-654.66,0.00016602,2]
[366405821,1750234257694,-532.75,0.00016602,2]
[366405822,1750234257704,-490.0,0.00016602,2]
[366405823,1750234257714,-490.0,0.00016602,2]
[366405824,1750234257724,-490.0,0.00016602,2]
[366405825,1750234257733,-490.0,0.00016602,2]
[366405826,1750234257743,-490.0,0.00016602,2]
[366405827,1750234257753,-923.72,0.00016602,2]
[366405828,1750234257763,-490.0,0.00016602,2]
[366405829,1750234257772,-490.0,0.00016602,2]
[366405830,1750234257781,-490.0,0.00016602,2]
[366405831,1750234257791,-490.0,0.00016602,2]
[366405832,1750234257800,-766.29,0.00016602,2]
[366405833,1750234257810,-1134.71,0.00016602,2]
[366405834,1750234257819,-607.17,0.00016602,2]
[366405835,1750234257829,-1156.33,0.00016602,2]
[366405836,1750234257839,-490.0,0.00016602,2]
[366405837,1750234257850,-494.78892502,0.00016602,2]
[366405838,1750234257859,-3027.41,0.00016602,2]
[366405839,1750234257869,-220.19524625,0.00016602,2]
[366405840,1750234257879,-490.0,0.00016602,2]
[366405841,1750234257888,-151.0,0.00016602,2]
[366405842,1750234257897,-910.47,0.00016602,2]
[366405843,1750234257998,-151.0,0.00016602,2]
[366405844,1750234258009,-151.0,0.00016602,2]
[366405845,1750234258019,-152.170871,0.00016602,2]
[366405846,1750234258028,-993.99,0.00016602,2]
[366405847,1750234258038,-490.0,0.00016602,2]
[366405848,1750234258048,-490.0,0.00016602,2]
[366405849,1750234258057,-188.154248,0.00016602,2]
[366405850,1750234258066,-490.0,0.00016602,2]
[366405851,1750234258075,-590.17,0.00016602,2]
[366405852,1750234258085,-490.0,0.00016602,2]
[366405853,1750234258094,-490.0,0.00016602,2]
[366405854,1750234258106,-490.0,0.00016602,2]
[366405855,1750234258116,-490.0,0.00016602,2]
[366405856,1750234258127,-490.0,0.00016602,2]
[366405857,1750234258137,-810.5,0.00016602,2]
[366405858,1750234258147,-490.0,0.00016602,2]
[366405859,1750234258157,-490.0,0.00016602,2]
[366405860,1750234258166,-1547.38,0.00016602,2]
[366405861,1750234258177,-490.0,0.00016602,2]
[366405862,1750234258186,-910.84,0.00016602,2]
[366405863,1750234258196,-490.0,0.00016602,2]
[366405864,1750234258206,-594.64,0.00016602,2]
[366405865,1750234258215,-151.0,0.00016602,2]
[366405866,1750234258224,-151.0,0.00016602,2]
[366405867,1750234258234,-253.130086,0.00016602,2]
[366405868,1750234258246,-490.0,0.00016602,2]
[366405869,1750234258258,-614.62,0.00016602,2]
[366405870,1750234258268,-490.0,0.00016602,2]
[366405871,1750234258277,-2189.3,0.00016602,2]
[366405872,1750234258287,-490.0,0.00016602,2]
[366405873,1750234258298,-504.42,0.00016602,2]
[366405874,1750234258307,-601.49,0.00016602,2]
[366405875,1750234258316,-490.0,0.00016602,2]
[366405876,1750234258327,-2227.17,0.00016602,2]
[366405877,1750234258336,-818.3,0.00016602,2]
[366405878,1750234258345,-490.0,0.00016602,2]
[366405879,1750234258355,-490.0,0.00016602,2]
[366405880,1750234258364,-490.0,0.00016602,2]
[366405881,1750234258374,-576.64,0.00016602,2]
[366405882,1750234258383,-490.0,0.00016602,2]
[366405883,1750234258393,-151.0,0.00016602,2]
[366405884,1750234258402,-1350.66,0.00016602,2]
[366405885,1750234258412,-151.0,0.00016602,2]
[366405886,1750234258421,-151.0,0.00016602,2]
[366405887,1750234258431,-151.0,0.00016602,2]
[366405888,1750234258440,-490.0,0.00016602,2]
[366405889,1750234258450,-490.0,0.00016602,2]
[366405890,1750234258460,-490.0,0.00016602,2]
[366405891,1750234258469,-1446.22,0.00016602,2]
[366405892,1750234258479,-490.0,0.00016602,2]
[366405893,1750234258488,-2263.13,0.00016602,2]
[366405894,1750234258497,-1573.28,0.00016602,2]
[366405895,1750234258507,-490.0,0.00016602,2]
[366405896,1750234258516,-785.62,0.00016602,2]
[366405897,1750234258525,-490.0,0.00016602,2]
[366405898,1750234258535,-490.0,0.00016602,2]
[366405899,1750234258545,-490.0,0.00016602,2]
[366405900,1750234258554,-490.0,0.00016602,2]
[366405901,1750234258563,-521.02,0.00016602,2]
[366405902,1750234258572,-1023.47,0.00016602,2]
[366405903,1750234258582,-490.0,0.00016602,2]
[366405904,1750234258591,-490.0,0.00016602,2]
[366405905,1750234258601,-1474.71,0.00016602,2]
[366405906,1750234258610,-710.39,0.00016602,2]
[366405907,1750234258619,-353.53333005,0.00016602,2]
[366405908,1750234258628,-490.0,0.00016602,2]
[366405909,1750234258638,-490.0,0.00016602,2]
[366405910,1750234258647,-632.81,0.00016602,2]
[366405911,1750234258657,-490.0,0.00016602,2]
[366405912,1750234258667,-490.0,0.00016602,2]
[366405913,1750234258676,-490.0,0.00016602,2]
[366405914,1750234258686,-761.28,0.00016602,2]
[366405915,1750234258696,-1914.47,0.00016602,2]
[366405916,1750234258706,-490.0,0.00016602,2]
[366405917,1750234258716,-1433.02,0.00016602,2]
[366405918,1750234258725,-2225.24,0.00016602,2]
[366405919,1750234258735,-770.88,0.00016602,2]
[366405920,1750234258745,-498.39981582,0.00016602,2]
[366405921,1750234258754,-490.0,0.00016602,2]
[366405922,1750234258764,-490.0,0.00016602,2]
[366405923,1750234258773,-1175.96,0.00016602,2]
[366405924,1750234258782,-490.0,0.00016602,2]
[366405925,1750234258792,-490.0,0.00016602,2]
[366405926,1750234258802,-490.0,0.00016602,2]
[366405927,1750234258812,-151.0,0.00016602,2]
[366405928,1750234258821,-490.0,0.00016602,2]
[366405929,1750234258832,-490.0,0.00016602,2]
[366405930,1750234258842,-490.0,0.00016602,2]
[366405931,1750234258851,-614.8,0.00016602,2]
[366405932,1750234258861,-1968.98,0.00016602,2]
[366405933,1750234258871,-490.0,0.00016602,2]
[366405934,1750234258881,-1018.92,0.00016602,2]
[366405935,1750234258890,-490.0,0.00016602,2]
[366405936,1750234258900,-501.21507245,0.00016602,2]
[366405937,1750234258910,-490.0,0.00016602,2]
[366405938,1750234258919,-521.76786814,0.00016602,2]
[366405939,1750234258929,-1627.4,0.00016602,2]
[366405940,1750234258939,-490.0,0.00016602,2]
[366405941,1750234258948,-490.0,0.00016602,2]
[366405942,1750234258957,-490.0,0.00016602,2]
[366405943,1750234258967,-787.05,0.00016602,2]
[366405944,1750234258977,-490.0,0.00016602,2]
[366405945,1750234258986,-490.0,0.00016602,2]
[366405946,1750234258995,-490.0,0.00016602,2]
[366405947,1750234259004,-587.01,0.00016602,2]
[366405948,1750234259014,-494.49750189,0.00016602,2]
[366405949,1750234259023,-490.0,0.00016602,2]
[366405950,1750234259032,-490.0,0.00016602,2]
[366405951,1750234259042,-490.0,0.00016602,2]
[366405952,1750234259051,-688.57,0.00016602,2]
[366405953,1750234259061,-490.0,0.00016602,2]
[366405954,1750234259070,-612.6,0.00016602,2]
[366405955,1750234259079,-673.49,0.00016602,2]
[366405956,1750234259089,-490.0,0.00016602,2]
[366405957,1750234259098,-1245.73,0.00016602,2]
[366405958,1750234259108,-567.43,0.00016602,2]
[366405959,1750234259117,-151.0,0.00016602,2]
[366405960,1750234259127,-151.0,0.00016602,2]
[366405961,1750234259136,-1384.25,0.00016602,2]
[366405962,1750234259146,-151.0,0.00016602,2]
[366405963,1750234259155,-151.0,0.00016602,2]
[366405964,1750234259164,-151.0,0.00016602,2]
[366405965,1750234259173,-151.0,0.00016602,2]
[366405966,1750234259183,-151.0,0.00016602,2]
[366405967,1750234259192,-190.080714,0.00016602,2]
[366405968,1750234259201,-151.0,0.00016602,2]
[366405969,1750234259211,-493.0722488,0.00016602,2]
[366405970,1750234259221,-490.0,0.00016602,2]
[366405971,1750234259231,-490.0,0.00016602,2]
[366405972,1750234259240,-490.0,0.00016602,2]
[366405973,1750234259249,-713.96,0.00016602,2]
[366405974,1750234259258,-490.0,0.00016602,2]
[366405975,1750234259268,-2580.01,0.00016602,2]
[366405976,1750234259278,-501.23,0.00016602,2]
[366405977,1750234259287,-151.0,0.00016602,2]
[366405978,1750234259297,-151.0,0.00016602,2]
[366405979,1750234259306,-151.0,0.00016602,2]
[366405980,1750234259315,-151.0,0.00016602,2]
[366405981,1750234259325,-490.0,0.00016602,2]
[366405982,1750234259335,-490.0,0.00016602,2]
[366405983,1750234259345,-2227.74,0.00016602,2]
[366405984,1750234259354,-201.622712,0.00016602,2]
[366405985,1750234259364,-201.622712,0.00016602,2]
[366405986,1750234259375,-151.0,0.00016602,2]
[366405987,1750234259386,-201.622712,0.00016602,2]
[366405988,1750234259395,-490.0,0.00016602,2]
[366405989,1750234259404,-151.0,0.00016602,2]
[366405990,1750234259413,-201.622712,0.00016602,2]
[366405991,1750234259423,-151.0,0.00016602,2]
[366405992,1750234259432,-201.622712,0.00016602,2]
[366405993,1750234259441,-300.242789,0.00016602,2]
[366405994,1750234259450,-490.0,0.00016602,2]
[366405995,1750234259459,-1651.88,0.00016602,2]
[366405996,1750234259469,-473.14624847,0.00016602,2]
[366405997,1750234259478,-503.74,0.00016602,2]
[366405998,1750234259487,-490.0,0.00016602,2]
[366405999,1750234259497,-528.6,0.00016602,2]
[366406000,1750234259506,-201.622712,0.00016602,2]
[366406001,1750234259515,-490.0,0.00016602,2]
[366406002,1750234259525,-201.622712,0.00016602,2]
[366406003,1750234259534,-201.622712,0.00016602,2]
[366406004,1750234259543,-201.622712,0.00016602,2]
[366406005,1750234259553,-201.622712,0.00016602,2]
[366406006,1750234259563,-490.0,0.00016602,2]
[366406007,1750234259572,-533.32,0.00016602,2]